bitfinex-derivatives/quotes_ETHF0:USTF0_20260203
["timestamp","ask_amount","ask_price","bid_price","bid_amount"]
[1770144255350,6.59188963,2127.5,2126.4,0.00359848]
[1770144255546,0.00445439,2127.7,2126.4,6.83563281]
[1770144255751,0.00445439,2127.7,2126.5,6.83203433]
[1770144255752,6.59634402,2127.7,2126.5,6.83203433]
[1770144256753,0.00445439,2127.7,2126.5,7.06740433]
[1770144257250,6.59188963,2128.0,2126.9,6.83203433]
[1770144257452,3.764,2128.3,2127.0,6.83203433]
[1770144257847,6.59188963,2128.4,2127.0,7.06734433]
[1770144258247,6.59628296,2128.4,2127.0,7.06734433]
[1770144258548,6.59628296,2128.4,2127.0,6.83203433]
[1770144258851,6.82711963,2127.8,2126.7,6.83203433]
[1770144259052,6.82711963,2127.8,2126.4,47.63563281]
[1770144259247,6.59188963,2127.6,2126.5,6.83203433]
[1770144260654,6.25633973,2128.0,2126.5,7.06739433]
[1770144261049,6.49154973,2128.0,2126.5,7.06739433]
[1770144261244,3.386,2128.3,2126.4,0.00359848]
[1770144261245,6.25633973,2127.6,2126.4,0.00359848]
[1770144261453,6.25633973,2127.3,2126.4,0.00359848]
[1770144262352,6.25633973,2127.6,2126.6,6.28198193]
[1770144262554,6.25633973,2127.9,2126.6,6.28198193]
[1770144263156,6.25633973,2127.9,2126.7,6.28198193]
[1770144264156,6.25633973,2127.9,2126.9,6.28198193]
[1770144264548,6.25633973,2127.5,2126.4,6.28558041]
[1770144264852,6.25633973,2127.7,2126.4,6.28558041]
[1770144265057,0.23522,2127.9,2126.6,6.28198193]
[1770144265252,6.25633973,2128.0,2126.6,6.51733193]
[1770144265456,6.25633973,2128.3,2127.1,6.51728193]
[1770144266151,6.25633973,2128.0,2126.7,6.28198193]
[1770144266357,6.49154973,2128.0,2126.8,6.28198193]
[1770144266558,6.49155973,2127.9,2126.8,6.28198193]
[1770144267053,2.53933121,2128.4,2126.8,6.28198193]
[1770144267054,6.25633973,2128.3,2126.8,6.28198193]
[1770144267359,6.25633973,2128.3,2127.0,6.28198193]
[1770144267854,0.00439333,2128.4,2127.5,6.28198193]
[1770144268054,0.00439333,2128.4,2127.2,6.28198193]
[1770144268253,6.26073306,2128.4,2127.2,6.28198193]
[1770144268453,6.26073306,2128.4,2127.4,6.28198193]
[1770144270356,6.26073306,2128.4,2127.4,11.38898193]
[1770144270561,0.00439333,2128.4,2127.3,6.28198193]
[1770144270854,0.00439333,2128.4,2127.3,6.51726193]
[1770144271056,0.00439333,2128.4,2127.4,47.08198193]
[1770144271554,0.00439333,2128.4,2127.5,6.28198193]
[1770144271951,0.00439333,2128.4,2127.5,6.51724193]
[1770144272758,0.00439333,2128.4,2127.5,6.28198193]
[1770144272957,6.26073306,2128.4,2127.5,6.28198193]
[1770144273364,6.49590306,2128.4,2127.4,40.8]
[1770144273555,6.25633973,2128.1,2126.7,6.28198193]
[1770144273756,6.25633973,2128.1,2126.9,6.28198193]
[1770144273957,6.25633973,2128.1,2127.0,6.28198193]
[1770144274659,0.00439333,2128.4,2127.0,6.28198193]
[1770144274660,6.26073306,2128.4,2127.0,6.51729193]
[1770144274856,6.26073306,2128.4,2127.2,6.28198193]
[1770144275058,6.26073306,2128.4,2127.2,10.22598193]
[1770144275260,6.26073306,2128.4,2127.3,6.28198193]
[1770144275556,6.26073306,2128.4,2127.2,3.944]
[1770144275761,4.830293,2128.3,2127.2,3.944]
[1770144276065,6.25633973,2128.0,2126.7,6.28198193]
[1770144276265,6.25633973,2128.0,2126.4,6.28558041]
[1770144276566,6.25633973,2127.8,2126.4,6.28558041]
[1770144276860,6.25633973,2127.8,2126.5,6.28198193]
[1770144277060,6.25633973,2127.7,2126.5,6.28198193]
[1770144278067,6.25633973,2127.7,2126.6,6.51734193]
[1770144278256,6.25633973,2127.3,2126.4,0.00359848]
[1770144278460,6.49161973,2127.3,2126.4,0.00359848]
[1770144279161,6.25633973,2127.3,2126.2,6.28198193]
[1770144279363,6.25633973,2127.3,2126.2,6.51738193]
[1770144279565,6.25633973,2128.0,2126.6,6.28198193]
[1770144279764,6.25633973,2127.8,2126.6,6.28198193]
[1770144280159,6.25633973,2127.6,2126.6,0.00374244]
[1770144280362,6.25633973,2127.4,2126.6,0.00374244]
[1770144280667,6.25633973,2127.2,2125.9,6.28198193]
[1770144280868,4.84865229,2127.1,2125.9,6.28198193]
[1770144281063,6.49161973,2127.3,2125.9,6.28198193]
[1770144281263,6.25633973,2127.1,2125.9,6.28198193]
[1770144281662,6.25633973,2127.1,2125.9,6.28550522]
[1770144282764,4.85128168,2127.0,2126.1,6.28198193]
[1770144282969,6.25633973,2127.5,2126.3,6.28198193]
[1770144283169,6.25633973,2127.3,2126.3,6.28198193]
[1770144283868,11.10256346,2127.2,2126.3,6.28198193]
[1770144284068,6.25633973,2127.2,2125.9,0.00352329]
[1770144284269,6.25633973,2127.0,2125.9,0.00352329]
[1770144284469,6.25633973,2126.6,2125.3,6.28198193]
[1770144284762,6.25633973,2126.4,2125.0,47.08198193]
[1770144285069,6.25633973,2125.9,2124.6,6.28198193]
[1770144285272,6.25633973,2126.2,2124.6,6.28198193]
[1770144285461,1.5937511,2125.8,2124.6,6.51756193]
[1770144285666,6.25633973,2126.3,2125.1,6.28198193]
[1770144285862,6.25633973,2126.3,2125.1,6.28707845]
[1770144285863,6.26140042,2126.3,2125.1,6.28707845]
[1770144286167,7.85001586,2125.9,2125.1,0.00509652]
[1770144286368,6.25633973,2126.2,2125.2,6.28198193]
[1770144286568,0.88529232,2125.8,2125.1,0.00509652]
[1770144286767,0.00506069,2126.3,2125.1,6.28707845]
[1770144287270,0.00506069,2126.3,2125.1,6.52258845]
[1770144287664,0.00506069,2126.3,2125.3,6.28198193]
[1770144288271,6.26140042,2126.3,2125.3,6.28198193]
[1770144288671,0.00506069,2126.3,2125.3,6.28198193]
[1770144289468,0.00506069,2126.3,2125.6,6.28198193]
[1770144289671,6.25633973,2127.3,2125.8,6.28198193]
[1770144289870,4.83245513,2127.2,2125.8,6.28198193]
[1770144290173,6.25633973,2127.3,2125.8,6.51742193]
[1770144290572,6.26066487,2127.3,2125.8,6.28198193]
[1770144290766,6.5814621,2127.1,2125.8,6.28198193]
[1770144290973,0.00432514,2127.3,2126.0,6.82753576]
[1770144291272,0.00432514,2127.3,2126.4,6.82753576]
[1770144291470,0.00432514,2127.3,2126.5,6.82753576]
[1770144291864,5.18563645,2128.3,2126.4,7.083]
[1770144291865,2.60324708,2128.6,2126.9,6.82753576]
[1770144292068,6.5814621,2128.8,2126.9,6.82753576]
[1770144292269,6.5814621,2128.8,2127.3,7.06281576]
[1770144292467,6.5814621,2128.8,2127.1,6.82753576]
[1770144292668,4.83472892,2128.7,2127.1,6.82753576]
[1770144292869,6.5814621,2128.5,2127.1,6.83317787]
[1770144293373,6.8166121,2128.5,2127.1,6.83317787]
[1770144293773,6.83366584,2128.3,2127.1,6.83317787]
[1770144293978,6.83366584,2128.3,2127.1,0.00564211]
[1770144294175,6.83366584,2128.3,2127.1,6.49101345]
[1770144294375,6.83366584,2128.3,2127.1,0.00564211]
[1770144294973,6.83366584,2128.1,2127.1,0.00564211]
[1770144295172,6.83366584,2128.4,2127.2,5.129]
[1770144295373,6.83366584,2128.4,2127.2,11.61437134]
[1770144295973,6.83366584,2128.3,2127.1,6.49101345]
[1770144296375,6.83366584,2128.3,2127.2,6.48537134]
[1770144296771,6.83366584,2128.1,2127.1,0.00564211]
[1770144296968,6.83366584,2128.1,2126.6,6.48537134]
[1770144297168,6.83366584,2127.9,2126.6,6.48537134]
[1770144297377,7.06888584,2127.9,2126.2,6.72076134]
[1770144297577,6.83366584,2127.9,2126.4,6.48537134]
[1770144297778,6.83366584,2127.9,2126.5,6.48537134]
[1770144297977,6.83366584,2127.9,2126.5,6.48990471]
[1770144299075,6.83366584,2127.6,2126.5,0.00453337]
[1770144299474,6.83366584,2127.6,2126.5,6.48990471]
[1770144300274,7.06894584,2127.4,2126.1,6.48537134]
[1770144300478,6.83366584,2127.2,2125.8,9.24337134]
[1770144300674,2.60324708,2127.5,2126.2,6.48537134]
[1770144300985,6.83366584,2128.3,2126.9,6.48537134]
[1770144301179,6.83366584,2128.3,2127.0,2.758]
[1770144301482,6.83366584,2128.1,2127.0,0.0051501]
[1770144301880,6.83366584,2127.9,2127.0,0.0051501]
[1770144302182,6.83366584,2127.1,2125.8,6.48537134]
[1770144302385,6.83366584,2126.7,2125.5,6.48537134]
[1770144302583,2.60324708,2127.0,2125.5,6.48537134]
[1770144302777,6.83366584,2127.5,2126.3,6.48537134]
[1770144303086,6.83366584,2127.9,2126.7,6.72071134]
[1770144303383,6.83366584,2128.2,2127.0,6.72068134]
[1770144303579,4.80508683,2128.1,2126.5,6.48537134]
[1770144303780,6.83366584,2128.0,2126.7,6.48537134]
[1770144304380,6.83366584,2128.7,2127.4,6.48537134]
[1770144304582,6.83366584,2128.5,2127.2,3.251]
[1770144304781,6.83366584,2128.5,2127.3,6.48537134]
[1770144304978,6.83366584,2128.2,2126.9,10.98937134]
[1770144305178,0.23517,2128.3,2126.9,4.504]
[1770144305179,6.83366584,2128.0,2126.9,4.504]
[1770144305681,6.8386801,2128.0,2126.9,10.98937134]
[1770144305877,6.8386801,2128.0,2127.0,6.48537134]
[1770144306085,0.00501426,2128.0,2126.4,6.48537134]
[1770144306282,6.8386801,2128.0,2126.4,6.72074134]
[1770144306476,4.79282321,2127.9,2126.3,0.00362237]
[1770144306682,6.83366584,2127.6,2126.3,6.48899371]
[1770144307480,7.06891584,2127.6,2126.3,6.48899371]
[1770144307685,7.06891584,2127.6,2126.3,0.00362237]
[1770144308185,6.83366584,2127.4,2126.3,0.00362237]
[1770144308975,6.83366584,2127.1,2126.3,0.00362237]
[1770144309179,6.83366584,2127.1,2125.4,6.48537134]
[1770144309379,6.83366584,2126.2,2124.8,6.48537134]
[1770144309580,6.83366584,2126.2,2123.9,9.83937729]
[1770144309581,7.06909584,2126.0,2124.4,10.24737134]
[1770144309777,6.83366584,2125.6,2124.0,6.48537134]
[1770144309974,9.98097794,2125.9,2124.3,6.48537134]
[1770144309975,7.01079096,2125.9,2124.3,6.48537134]
[1770144310178,1.41730105,2125.5,2124.4,8.904]
[1770144310386,1.41730105,2125.5,2124.5,6.48537134]
[1770144310583,6.83366584,2125.5,2124.3,0.00485343]
[1770144310982,6.83366584,2125.3,2124.3,0.00485343]
[1770144311385,7.71911641,2125.2,2124.3,0.00485343]
[1770144311786,6.83366584,2125.2,2124.3,0.00485343]
[1770144311986,6.83366584,2125.0,2124.3,0.00485343]
[1770144312287,0.53162548,2124.9,2124.3,0.00485343]
[1770144312587,0.53162548,2124.9,2124.3,6.49022477]
[1770144312778,0.53162548,2124.9,2124.3,0.00485343]
[1770144313282,6.83366584,2125.0,2124.3,0.00485343]
[1770144313785,0.3544003,2124.9,2124.3,0.00485343]
[1770144313984,0.00359061,2125.9,2124.3,6.49022477]
[1770144314187,6.83725645,2125.9,2124.8,6.48537134]
[1770144314385,7.89616649,2125.8,2124.4,1.02741276]
[1770144314580,6.83366584,2125.6,2124.4,1.02741276]
[1770144314887,6.83366584,2125.3,2124.3,0.00485343]
[1770144315087,6.83366584,2125.3,2124.3,1e-08]
[1770144315385,0.88587568,2125.2,2124.3,6.48537135]
[1770144315881,6.83366584,2125.2,2124.3,1e-08]
[1770144316086,6.83366584,2125.0,2124.3,1e-08]
[1770144316387,0.53162548,2124.9,2124.3,1e-08]
[1770144318089,6.83366584,2125.7,2124.4,6.48537134]
[1770144318385,1.41670917,2125.3,2124.5,3.765]
[1770144318585,0.00359061,2125.9,2124.8,6.48537134]
[1770144319088,6.83725645,2125.9,2124.8,6.72093134]
[1770144319392,6.83725645,2125.9,2124.8,6.48537134]
[1770144319587,6.83725645,2125.9,2124.4,6.48537134]
[1770144319886,6.83366584,2124.6,2123.0,6.48537134]
[1770144320187,6.83366584,2123.7,2122.5,1.21174033]
[1770144320484,6.34540762,2123.5,2122.3,6.69150039]
[1770144320690,6.34540762,2123.5,2122.2,4.00084]
[1770144320691,6.34540762,2123.5,2122.5,6.69150039]
[1770144320889,0.35500989,2123.4,2122.5,0.00553801]
[1770144321888,6.70041751,2123.4,2122.5,0.00553801]
[1770144322285,6.70041751,2123.4,2121.9,6.69150039]
[1770144322592,6.70041751,2123.4,2122.0,40.8]
[1770144322791,6.70041751,2123.4,2121.9,11.82650039]
[1770144323092,6.70041751,2123.4,2121.9,5.135]
[1770144323296,6.70041751,2123.4,2121.9,0.00507795]
[1770144323490,6.70041751,2123.4,2121.9,6.69657834]
[1770144323690,6.70041751,2123.4,2122.0,40.8]
[1770144323994,6.70041751,2123.4,2122.1,6.69150039]
[1770144324594,0.35500989,2123.4,2122.1,6.69150039]
[1770144324892,6.70041751,2123.4,2122.1,6.69150039]
[1770144325290,0.35500989,2123.4,2122.1,6.69150039]
[1770144325498,0.00515194,2123.5,2122.3,6.69150039]
[1770144326097,5.35871662,2123.4,2122.3,11.84650039]
[1770144326292,6.34540762,2123.3,2122.0,47.49150039]
[1770144326500,6.34540762,2123.3,2122.1,6.69150039]
[1770144326699,8.79102767,2123.2,2122.1,6.69150039]
[1770144326993,6.34540762,2123.1,2122.1,6.69150039]
[1770144327196,4.96275513,2123.3,2122.1,6.69150039]
[1770144327498,4.78520419,2123.4,2122.1,6.69150039]
[1770144327701,11.13061181,2123.4,2122.1,11.86050039]
[1770144327899,6.34540762,2123.4,2122.1,11.86050039]
[1770144328099,4.60766162,2123.3,2121.9,11.86957834]
[1770144328296,6.34540762,2123.2,2121.9,0.00507795]
[1770144328500,6.34540762,2122.9,2121.9,0.00507795]
[1770144328901,6.87816083,2122.8,2121.9,0.00507795]
[1770144329400,6.34540762,2122.8,2121.9,0.00507795]
[1770144329594,1.06553153,2122.7,2121.9,0.00507795]
[1770144329797,7.41093915,2122.7,2121.9,0.00507795]
[1770144330198,6.34540762,2122.7,2121.9,0.00507795]
[1770144330399,1.1684306,2122.6,2121.9,0.00507795]
[1770144330707,6.34540762,2123.1,2121.9,6.69657834]
[1770144330901,6.34540762,2123.1,2121.9,6.93244834]
[1770144331101,10.49485913,2123.1,2122.0,6.92737039]
[1770144331602,4.14945151,2123.1,2122.1,6.92736039]
[1770144331803,4.14945151,2123.1,2122.1,6.69150039]
[1770144332205,6.34540762,2123.0,2121.9,6.69657834]
[1770144332400,6.34540762,2123.0,2121.9,0.00507795]
[1770144332595,6.34540762,2122.8,2121.9,0.00507795]
[1770144333000,0.23575,2123.1,2121.9,0.00507795]
[1770144333001,6.87818594,2122.7,2121.9,0.00507795]
[1770144333203,6.34540762,2123.1,2121.9,6.93245834]
[1770144333403,0.1775593,2122.8,2122.0,6.92736039]
[1770144333603,4.14946824,2123.0,2122.0,6.92736039]
[1770144333804,4.14946824,2123.0,2122.1,6.92736039]
[1770144334200,6.34540762,2123.4,2122.0,6.69150039]
[1770144334406,6.34540762,2123.4,2122.4,0.23582]
[1770144334607,3.61677359,2123.4,2122.5,6.92731039]
[1770144334807,3.61677359,2123.4,2122.7,6.69150039]
[1770144335001,6.34540762,2124.1,2122.8,11.87450039]
[1770144335207,6.34540762,2124.1,2123.0,6.69150039]
[1770144335499,6.34540762,2124.4,2123.5,0.2357]
[1770144335702,6.34540762,2124.9,2123.2,6.69150039]
[1770144335903,6.34540762,2124.9,2123.1,1.37088357]
[1770144335904,6.34540762,2124.4,2123.3,5.184]
[1770144336103,6.34540762,2124.2,2122.5,52.91031039]
[1770144336300,6.34540762,2123.9,2122.6,0.2358]
[1770144336907,6.3497103,2123.9,2122.6,0.00381107]
[1770144337207,6.34540762,2123.7,2122.6,0.00381107]
[1770144337708,6.58110762,2123.5,2122.6,0.00381107]
[1770144338514,6.34540762,2123.3,2122.2,2.763]
[1770144338809,6.34540762,2123.3,2121.9,5.42188]
[1770144339010,6.34540762,2123.3,2122.0,0.23586]
[1770144339210,6.34540762,2123.1,2122.0,6.92736039]
[1770144339605,0.17756767,2123.0,2122.2,0.23584]
[1770144339806,6.34540762,2123.5,2122.3,0.23583]
[1770144340005,6.58111762,2123.5,2122.0,0.00602606]
[1770144340203,6.69045718,2122.9,2122.0,0.00602606]
[1770144341008,0.34504956,2122.9,2122.0,6.69752645]
[1770144341509,0.34504956,2122.9,2122.1,0.23586]
[1770144341907,6.34540762,2123.8,2122.8,0.23578]
[1770144342108,6.34540762,2123.8,2122.8,5.182]
[1770144342307,6.34540762,2123.8,2122.8,11.87350039]
[1770144342703,6.34540762,2123.8,2122.8,12.10928039]
[1770144342902,0.00430268,2123.9,2122.9,41.03577]
[1770144343104,6.34540762,2124.6,2123.7,0.23568]
[1770144343810,6.34540762,2124.6,2123.6,5.181]
[1770144344104,0.00519747,2124.6,2123.9,0.23566]
[1770144344304,6.35060509,2124.6,2123.6,0.0055257]
[1770144344613,6.34540762,2124.0,2122.4,6.69150039]
[1770144345003,6.34540762,2124.0,2122.8,0.23577]
[1770144345205,6.34540762,2124.0,2122.5,40.8]
[1770144345411,6.34540762,2123.7,2122.5,0.00564541]
[1770144345606,6.34540762,2123.3,2121.7,0.2359]
[1770144345910,6.34540762,2122.9,2121.6,0.23591]
[1770144346214,0.17761788,2122.8,2121.4,47.49150039]
[1770144346512,6.34540762,2122.7,2121.4,47.49150039]
[1770144346708,6.35094686,2122.7,2121.4,47.4964182]
[1770144346908,0.17765136,2122.6,2121.5,6.69150039]
[1770144347111,6.52305898,2122.6,2121.4,40.80491781]
[1770144347414,6.52305898,2122.6,2121.4,0.00491781]
[1770144347610,6.34540762,2122.4,2121.4,0.00491781]
[1770144348004,6.34540762,2122.2,2121.4,0.00491781]
[1770144348407,6.34540762,2122.0,2121.4,0.00491781]
[1770144348605,6.34540762,2122.0,2121.0,40.8]
[1770144348813,0.53310479,2121.9,2121.0,0.23598]
[1770144349109,6.34540762,2122.3,2121.0,6.62069039]
[1770144349315,4.08617406,2121.9,2121.1,4.41897]
[1770144349513,4.08617406,2121.9,2121.2,4.183]
[1770144349712,6.34540762,2122.1,2121.2,4.42268442]
[1770144350011,8.29881067,2122.5,2121.2,10.80741481]
[1770144350211,6.34540762,2122.4,2121.2,4.18672442]
[1770144350414,6.56567169,2122.7,2121.3,6.85663039]
[1770144350618,7.98040559,2122.3,2121.3,6.85663039]
[1770144350817,1.42027314,2122.3,2121.4,0.23593]
[1770144351313,0.00553924,2122.7,2121.4,5.33826497]
[1770144351512,0.23569,2123.7,2122.1,7.03560383]
[1770144351718,4.78145923,2123.6,2122.2,7.03558383]
[1770144351916,38.89873024,2124.0,2122.3,6.79974383]
[1770144352119,4.75752915,2123.9,2122.3,6.79974383]
[1770144352315,4.75752915,2123.8,2122.5,6.79974383]
[1770144352514,0.00441003,2123.8,2122.5,6.79974383]
[1770144352719,4.75631396,2123.7,2122.4,41.03582]
[1770144353020,4.75631396,2123.6,2122.2,6.79974383]
[1770144353218,4.75631396,2123.5,2122.4,0.23582]
[1770144353423,6.56454248,2123.8,2122.6,7.03554383]
[1770144354024,6.56454248,2123.8,2122.6,6.79974383]
[1770144354419,0.00441003,2123.8,2122.9,6.7761174]
[1770144354621,0.00441003,2123.8,2122.9,6.77995093]
[1770144355017,0.00441003,2123.8,2122.9,6.54418093]
[1770144355220,6.66902533,2123.8,2122.9,0.00383353]
[1770144356125,6.6646153,2123.3,2121.8,6.5403474]
[1770144356321,6.6646153,2123.1,2121.8,6.7762374]
[1770144356522,6.6646153,2123.1,2121.9,6.7762274]
[1770144356723,6.6646153,2123.1,2121.6,6.5403474]
[1770144356924,6.6646153,2123.1,2121.6,6.54416985]
[1770144357118,6.6646153,2123.1,2121.8,6.5403474]
[1770144357322,6.6646153,2123.1,2121.7,8.17748841]
[1770144357618,42.34173024,2123.7,2121.6,0.00382245]
[1770144357619,4.71726096,2123.0,2121.6,0.00382245]
[1770144357825,6.6646153,2122.9,2121.6,0.00382245]
[1770144358019,6.6646153,2122.7,2121.6,0.00382245]
[1770144358227,6.6646153,2122.8,2121.6,6.54416985]
[1770144358719,6.6646153,2122.8,2121.6,6.78007985]
[1770144358920,6.6646153,2122.8,2120.9,3.77]
[1770144358921,6.6646153,2122.6,2121.0,6.7763274]
[1770144359324,6.84230853,2122.5,2121.0,6.7763274]
[1770144360024,6.84230853,2122.5,2121.0,6.54485353]
[1770144360219,6.6646153,2122.3,2121.0,0.00450613]
[1770144360428,6.66913419,2122.3,2121.0,6.78083353]
[1770144360719,0.00451889,2122.3,2121.7,6.7762474]
[1770144360920,6.6646153,2123.0,2121.8,6.5403474]
[1770144361123,0.2358,2122.6,2121.2,6.5403474]
[1770144361324,6.6646153,2122.5,2121.2,6.7762974]
[1770144361722,6.6646153,2122.5,2121.3,6.7762874]
[1770144361924,0.00419445,2122.5,2121.7,6.5403474]
[1770144362426,6.6646153,2123.6,2122.7,0.23579]
[1770144362625,6.6646153,2124.2,2122.9,0.23577]
[1770144362826,6.6646153,2124.2,2123.2,0.23574]
[1770144363226,6.6646153,2124.2,2123.3,0.23572]
[1770144363428,6.6646153,2125.0,2123.8,6.5403474]
[1770144363721,6.6646153,2125.0,2123.3,0.00447994]
[1770144364024,6.6646153,2124.2,2123.3,0.00447994]
[1770144364223,6.6646153,2124.5,2123.3,0.00447994]
[1770144364423,6.9037086,2124.5,2123.3,0.00447994]
[1770144364624,6.6646153,2124.3,2122.7,6.5403474]
[1770144364829,6.6646153,2124.3,2122.9,0.23576]
[1770144365129,6.6646153,2124.3,2122.9,47.5761074]
[1770144365328,6.6646153,2124.3,2123.0,6.7761074]
[1770144365523,6.5403474,2123.6,2121.8,6.5403474]
[1770144365725,6.5403474,2123.4,2121.9,6.7762174]
[1770144366122,9.9863474,2123.7,2122.2,0.23585]
[1770144366427,9.9863474,2123.7,2122.3,6.5403474]
[1770144366622,6.5403474,2123.6,2120.4,9.83937729]
[1770144366827,6.4831217,2124.2,2119.1,22.19390219]
[1770144366828,5.87254474,2120.3,2119.1,15.65355479]
[1770144367025,2.764,2120.2,2119.1,4.9151016]
[1770144367225,8.90020264,2120.2,2119.1,4.9151016]
[1770144367426,0.51058969,2120.3,2119.3,6.9367396]
[1770144367625,3.541,2120.6,2119.3,6.9367396]
[1770144367828,4.91782481,2120.1,2118.4,6.9367396]
[1770144368027,0.00607569,2120.3,2118.6,6.9367396]
[1770144368327,4.91782481,2120.0,2118.7,4.9151016]
[1770144368527,5.34148247,2119.9,2118.7,4.9151016]
[1770144368725,44.04698683,2119.8,2117.8,6.9367396]
[1770144368929,5.33939089,2119.7,2117.8,6.94250477]
[1770144369125,5.33939089,2119.6,2117.9,4.9151016]
[1770144369328,5.33939089,2119.6,2117.2,6.9367396]
[1770144369329,55.09178699,2119.5,2117.2,6.9367396]
[1770144369531,38.70759594,2118.7,2116.8,6.9367396]
[1770144369830,5.42185645,2118.9,2116.2,6.9367396]
[1770144369831,42.6566561,2118.5,2116.2,6.9367396]
[1770144370132,49.18646933,2118.4,2116.2,6.9367396]
[1770144370327,1.37297571,2118.4,2116.4,6.9367396]
[1770144370527,8.99007607,2118.3,2116.4,6.9367396]
[1770144370732,5.5135512,2118.2,2116.2,0.00374216]
[1770144370933,5.35026717,2118.2,2116.4,4.9151016]
[1770144371129,5.27832649,2118.1,2116.4,4.9151016]
[1770144371331,5.49874044,2118.0,2116.4,4.9151016]
[1770144371527,5.11396717,2118.0,2116.2,0.00374216]
[1770144371729,3.586,2117.9,2116.3,11.8518412]
[1770144372132,5.42874215,2117.8,2116.4,6.9367396]
[1770144372330,5.42874215,2117.8,2116.8,4.71280001]
[1770144372528,5.42874215,2117.8,2116.4,6.9367396]
[1770144372529,5.34430735,2117.9,2116.9,6.9367396]
[1770144372831,5.01057585,2118.1,2116.6,6.9367396]
[1770144373035,5.24688585,2118.1,2116.6,6.9367396]
[1770144373333,5.01057585,2118.0,2116.8,4.71280001]
[1770144373533,5.01057585,2118.0,2116.2,0.00374216]
[1770144373534,5.01057585,2118.0,2117.0,6.9367396]
[1770144373734,4.99754794,2118.1,2117.0,6.9367396]
[1770144373933,0.23629,2118.2,2117.1,4.9151016]
[1770144374128,0.00449321,2118.4,2116.4,6.9367396]
[1770144374129,0.23631,2118.1,2116.5,6.9367396]
[1770144374334,0.23634,2117.8,2116.5,6.9367396]
[1770144374527,0.23634,2117.8,2116.2,0.00374216]
[1770144374528,0.23634,2117.8,2116.6,4.9151016]
[1770144374733,3.71280016,2117.6,2116.3,4.9151016]
[1770144374929,0.23637,2117.5,2116.2,0.00374216]
[1770144375129,0.23637,2117.5,2116.2,4.91884376]
[1770144375130,5.16079648,2117.5,2116.2,4.91884376]
[1770144375729,0.23638,2117.4,2116.2,4.91884376]
[1770144376239,0.23643,2117.0,2116.2,0.00374216]
[1770144376430,0.23644,2116.9,2116.2,0.00374216]
[1770144376741,0.23648,2116.5,2115.0,6.9367396]
[1770144376936,0.23648,2116.5,2115.2,6.9367396]
[1770144377134,5.40013182,2116.4,2115.2,6.9367396]
[1770144377333,5.40013182,2116.4,2115.7,6.9367396]
[1770144377540,5.40578644,2116.4,2115.8,4.9151016]
[1770144377735,0.00191245,2116.4,2116.0,11.64953961]
[1770144377933,5.48491977,2116.3,2116.1,4.71280001]
[1770144378238,3.776,2117.0,2115.8,4.9151016]
[1770144378435,0.23647,2116.6,2115.7,0.00392953]
[1770144378632,5.48491977,2116.2,2115.8,6.9367396]
[1770144378837,0.71452271,2116.5,2115.8,6.9367396]
[1770144379037,4.94046538,2116.1,2115.9,4.9151016]
[1770144379334,2.62079663,2116.7,2116.1,6.9367396]
[1770144379637,0.89327578,2116.9,2115.9,1.5119474]
[1770144380034,3.776,2117.0,2115.9,8.0522948]
[1770144380239,3.51407241,2116.9,2115.9,8.0522948]
[1770144380539,3.51747265,2116.9,2115.9,8.17005178]
[1770144381139,0.23629,2118.3,2116.4,10.37090454]
[1770144381339,2.54324359,2118.0,2116.4,6.65810438]
[1770144381540,2.54324359,2118.0,2116.0,6.73979426]
[1770144381541,0.23634,2117.8,2116.6,6.65810438]
[1770144381934,0.23634,2117.8,2116.1,1.5119474]
[1770144381935,2.54324359,2118.8,2116.8,6.65810438]
[1770144382135,0.23629,2118.3,2116.9,6.65810438]
[1770144382435,0.23629,2118.3,2117.1,6.65810438]
[1770144382638,2.54324359,2118.5,2117.1,6.65810438]
[1770144382833,2.54324359,2118.5,2116.5,3.778]
[1770144382834,0.23627,2118.4,2117.3,6.65810438]
[1770144383134,0.23607,2120.3,2117.3,6.65810438]
[1770144383135,2.99469181,2119.3,2117.5,6.65810438]
[1770144383340,6.77269181,2119.4,2117.7,6.65810438]
[1770144383634,0.2362,2119.1,2117.7,6.65810438]
[1770144383836,2.99469181,2118.9,2117.8,0.9996774]
[1770144384136,0.23628,2118.4,2117.5,7.65778178]
[1770144384641,0.00345744,2118.2,2117.5,0.9996774]
[1770144384941,0.00346188,2118.9,2117.5,7.65778178]
[1770144385440,0.23968188,2118.9,2117.5,7.65778178]
[1770144385836,0.00346188,2118.9,2117.5,7.65778178]
[1770144386236,0.00346188,2118.9,2117.7,6.65810438]
[1770144386634,0.00346188,2118.9,2117.9,6.65810438]
[1770144387039,0.00346188,2118.9,2118.1,6.65810438]
[1770144387439,3.18667071,2119.7,2118.3,6.65810438]
[1770144387645,3.42285071,2119.3,2117.9,6.65810438]
[1770144387840,3.18667071,2119.7,2117.9,6.65810438]
[1770144388042,3.42280071,2119.7,2118.1,6.65810438]
[1770144388246,0.23613,2119.7,2118.1,6.65810438]
[1770144388444,0.23614,2119.6,2118.2,0.99621552]
[1770144388744,0.23614,2119.6,2118.3,6.65810438]
[1770144389142,3.46819817,2120.5,2118.5,6.65810438]
[1770144389341,0.23607,2120.2,2118.7,6.65810438]
[1770144389742,3.23215817,2120.9,2118.9,6.65810438]
[1770144389941,3.59121102,2121.4,2118.9,6.89431438]
[1770144390143,0.236,2120.8,2119.1,6.65810438]
[1770144390346,3.23215817,2120.8,2119.1,6.65810438]
[1770144390546,0.00345744,2120.7,2119.3,6.65810438]
[1770144390746,0.23607,2120.2,2119.3,6.65810438]
[1770144391043,0.00345744,2120.8,2119.4,7.64825031]
[1770144391251,0.23605,2120.4,2119.4,6.65810438]
[1770144391449,0.23606,2120.3,2119.6,6.65810438]
[1770144391645,0.23606,2120.3,2119.5,6.65810438]
[1770144391840,0.00345744,2120.1,2119.6,0.99014593]
[1770144392040,3.35005462,2120.3,2119.0,7.64825031]
[1770144392245,3.35005462,2120.1,2118.9,0.51590593]
[1770144392444,3.35005462,2120.1,2118.9,7.17401031]
[1770144392643,0.00345744,2120.0,2118.9,7.17401031]
[1770144392844,0.00345744,2119.9,2118.9,7.17401031]
[1770144393049,0.00345744,2119.8,2118.9,7.17401031]
[1770144393249,0.00345744,2119.6,2118.9,0.52136988]
[1770144393449,0.00342308,2119.8,2118.9,7.17947426]
[1770144393748,0.00345744,2119.7,2118.9,7.17947426]
[1770144393945,0.00342308,2119.8,2118.9,7.17947426]
[1770144394351,0.00345744,2119.7,2118.9,7.17947426]
[1770144394549,0.00342308,2119.8,2118.9,7.17947426]
[1770144395043,0.00688052,2119.8,2118.9,7.17947426]
[1770144395251,0.00345744,2119.5,2118.9,7.17947426]
[1770144395449,0.00345744,2119.4,2118.9,0.52136988]
[1770144395646,0.23629,2118.2,2114.5,6.95069361]
[1770144395949,0.23653,2116.1,2115.0,6.95069361]
[1770144396147,5.44588619,2116.0,2115.0,6.95069361]
[1770144396448,3.03751102,2116.0,2115.2,6.95069361]
[1770144396649,3.04300885,2116.0,2114.9,15.01702053]
[1770144396842,3.04646629,2116.0,2114.9,21.96771414]